[Event "Titled Tuesday Blitz December 13 Early 2022"]
[White "Colas, Joshua"]
[Black "Kosteniuk, Alexandra"]
[WhiteFideId "2044447"]
[BlackFideId "4128125"]
[WhiteElo "2347"]
[BlackElo "2469"]
[Result "1-0"]
[Round "04"]
[TimeControl "180+1"]
[Date "2022.12.14"]
[WhiteClock "0:00:12"]
[BlackClock "0:00:02"]

1. Nf3 {[%clk 0:03:00]}  Nf6 {[%clk 0:02:59]} 2. c4 {[%clk 0:02:50]}  g6 {[%clk 0:02:59]} 3. b3 {[%clk 0:02:51]}  Bg7 {[%clk 0:02:59]} 4. Bb2 {[%clk 0:02:51]}  c5 {[%clk 0:02:59]} 5. g3 {[%clk 0:02:50]}  Nc6 {[%clk 0:02:58]} 6. Bg2 {[%clk 0:02:50]}  d6 {[%clk 0:02:58]} 7. d4 {[%clk 0:02:49]}  cxd4 {[%clk 0:02:57]} 8. Nxd4 {[%clk 0:02:50]}  Bd7 {[%clk 0:02:58]} 9. O-O {[%clk 0:02:50]}  O-O {[%clk 0:02:58]} 10. Nc3 {[%clk 0:02:51]}  Rc8 {[%clk 0:02:56]} 11. Nd5 {[%clk 0:02:51]}  Re8 {[%clk 0:02:44]} 12. Nxf6+ {[%clk 0:02:49]}  Bxf6 {[%clk 0:02:39]} 13. Nxc6 {[%clk 0:02:49]}  Bxc6 {[%clk 0:02:39]} 14. Bxf6 {[%clk 0:02:48]}  exf6 {[%clk 0:02:37]} 15. e3 {[%clk 0:02:46]}  Bxg2 {[%clk 0:02:35]} 16. Kxg2 {[%clk 0:02:47]}  Qb6 {[%clk 0:02:30]} 17. Qf3 {[%clk 0:02:45]}  Kg7 {[%clk 0:02:29]} 18. Rfd1 {[%clk 0:02:41]}  Re6 {[%clk 0:02:29]} 19. Rd2 {[%clk 0:02:39]}  Qc6 {[%clk 0:02:28]} 20. Rad1 {[%clk 0:02:37]}  f5 {[%clk 0:02:22]} 21. Rd5 {[%clk 0:02:29]}  a6 {[%clk 0:02:17]} 22. a4 {[%clk 0:02:28]}  h5 {[%clk 0:02:07]} 23. a5 {[%clk 0:02:26]}  h4 {[%clk 0:01:59]} 24. Qf4 {[%clk 0:02:25]}  hxg3 {[%clk 0:01:54]} 25. hxg3 {[%clk 0:02:24]}  Re5 {[%clk 0:01:41]} 26. Qf3 {[%clk 0:01:53]}  Rxd5 {[%clk 0:01:40]} 27. Rxd5 {[%clk 0:01:48]}  Re8 {[%clk 0:01:36]} 28. Rd4 {[%clk 0:01:08]}  Re6 {[%clk 0:01:25]} 29. Qxc6 {[%clk 0:00:54]}  bxc6 {[%clk 0:01:26]} 30. b4 {[%clk 0:00:54]}  Kf8 {[%clk 0:01:15]} 31. b5 {[%clk 0:00:49]}  cxb5 {[%clk 0:01:15]} 32. cxb5 {[%clk 0:00:50]}  axb5 {[%clk 0:01:15]} 33. Rd5 {[%clk 0:00:51]}  Re4 {[%clk 0:00:54]} 34. Rxb5 {[%clk 0:00:44]}  Ra4 {[%clk 0:00:53]} 35. Rb8+ {[%clk 0:00:42]}  Ke7 {[%clk 0:00:52]} 36. Rb7+ {[%clk 0:00:43]}  Ke6 {[%clk 0:00:52]} 37. Ra7 {[%clk 0:00:44]}  Ra2 {[%clk 0:00:49]} 38. Kf3 {[%clk 0:00:43]}  g5 {[%clk 0:00:48]} 39. a6 {[%clk 0:00:42]}  Kf6 {[%clk 0:00:45]} 40. Ra8 {[%clk 0:00:41]}  g4+ {[%clk 0:00:40]} 41. Kg2 {[%clk 0:00:41]}  Ra1 {[%clk 0:00:40]} 42. a7 {[%clk 0:00:34]}  d5 {[%clk 0:00:35]} 43. f4 {[%clk 0:00:31]}  gxf3+ {[%clk 0:00:17]} 44. Kxf3 {[%clk 0:00:31]}  Ra2 {[%clk 0:00:18]} 45. g4 {[%clk 0:00:17]}  fxg4+ {[%clk 0:00:18]} 46. Kxg4 {[%clk 0:00:18]}  Ra4+ {[%clk 0:00:17]} 47. Kg3 {[%clk 0:00:17]}  Ra2 {[%clk 0:00:15]} 48. Kf3 {[%clk 0:00:15]}  Kf5 {[%clk 0:00:13]} 49. Kg3 {[%clk 0:00:12]}  f6 {[%clk 0:00:11]} 50. Kf3 {[%clk 0:00:12]}  Ra4 {[%clk 0:00:09]} 51. Ke2 {[%clk 0:00:12]}  Ra3 {[%clk 0:00:09]} 52. Kd2 {[%clk 0:00:13]}  Ra6 {[%clk 0:00:06]} 53. Kd3 {[%clk 0:00:13]}  Ra3+ {[%clk 0:00:06]} 54. Kd4 {[%clk 0:00:14]}  Ra4+ {[%clk 0:00:07]} 55. Kxd5 {[%clk 0:00:14]}  Ra1 {[%clk 0:00:07]} 56. Kc5 {[%clk 0:00:12]}  Ra2 {[%clk 0:00:06]} 57. e4+ {[%clk 0:00:11]}  Kf4 {[%clk 0:00:05]} 58. e5 {[%clk 0:00:11]}  fxe5 {[%clk 0:00:01]} 59. Rf8+ {[%clk 0:00:11]}  Ke3 {[%clk 0:00:01]} 60. a8=Q {[%clk 0:00:11]}  Rxa8 {[%clk 0:00:02]} 61. Rxa8 {[%clk 0:00:12]}  e4 {[%clk 0:00:02]} 62. Kd5 {[%clk 0:00:12]} 1-0


[Site "https://www.chess.com"]

[Event "Titled Tuesday Blitz December 13 Early 2022"]
[White "Daneshvar, Bardiya"]
[Black "Andreikin, Dmitry"]
[WhiteFideId "12576468"]
[BlackFideId "4158814"]
[WhiteElo "2429"]
[BlackElo "2735"]
[Result "0-1"]
[Round "04"]
[TimeControl "180+1"]
[Date "2022.12.13"]
[WhiteClock "0:00:02"]
[BlackClock "0:00:04"]

1. Nf3 {[%clk 0:03:00]}  Nf6 {[%clk 0:02:56]} 2. c4 {[%clk 0:03:01]}  e6 {[%clk 0:02:56]} 3. g3 {[%clk 0:03:01]}  d5 {[%clk 0:02:51]} 4. Bg2 {[%clk 0:03:01]}  Be7 {[%clk 0:02:51]} 5. O-O {[%clk 0:03:00]}  O-O {[%clk 0:02:52]} 6. b3 {[%clk 0:03:01]}  c6 {[%clk 0:02:46]} 7. Bb2 {[%clk 0:03:00]}  b6 {[%clk 0:02:47]} 8. d4 {[%clk 0:02:56]}  Bb7 {[%clk 0:02:46]} 9. Nc3 {[%clk 0:02:57]}  Nbd7 {[%clk 0:02:46]} 10. e3 {[%clk 0:02:34]}  Ba6 {[%clk 0:02:34]} 11. Nd2 {[%clk 0:02:31]}  b5 {[%clk 0:02:34]} 12. Re1 {[%clk 0:02:20]}  bxc4 {[%clk 0:02:16]} 13. bxc4 {[%clk 0:02:20]}  Rb8 {[%clk 0:02:11]} 14. Rb1 {[%clk 0:02:17]}  h5 {[%clk 0:02:02]} 15. Qa4 {[%clk 0:02:07]}  Qc8 {[%clk 0:01:55]} 16. c5 {[%clk 0:01:51]}  Bd3 {[%clk 0:01:53]} 17. Nb3 {[%clk 0:01:46]}  Bxb1 {[%clk 0:01:52]} 18. Rxb1 {[%clk 0:01:47]}  Bd8 {[%clk 0:01:44]} 19. h3 {[%clk 0:01:36]}  a5 {[%clk 0:01:20]} 20. Bc1 {[%clk 0:01:11]}  e5 {[%clk 0:01:13]} 21. Bd2 {[%clk 0:01:07]}  exd4 {[%clk 0:00:54]} 22. exd4 {[%clk 0:01:08]}  Rb4 {[%clk 0:00:52]} 23. Qa3 {[%clk 0:01:07]}  Qb8 {[%clk 0:00:49]} 24. Re1 {[%clk 0:00:54]}  h4 {[%clk 0:00:42]} 25. g4 {[%clk 0:00:44]}  Re8 {[%clk 0:00:42]} 26. Rxe8+ {[%clk 0:00:37]}  Nxe8 {[%clk 0:00:43]} 27. Ne2 {[%clk 0:00:30]}  Rc4 {[%clk 0:00:36]} 28. Bf1 {[%clk 0:00:26]}  Rc2 {[%clk 0:00:34]} 29. Bxa5 {[%clk 0:00:24]}  Nef6 {[%clk 0:00:28]} 30. Bxd8 {[%clk 0:00:21]}  Qxd8 {[%clk 0:00:28]} 31. Qa6 {[%clk 0:00:21]}  Qc7 {[%clk 0:00:23]} 32. a4 {[%clk 0:00:14]}  Ne4 {[%clk 0:00:21]} 33. Qd3 {[%clk 0:00:15]}  Ra2 {[%clk 0:00:19]} 34. a5 {[%clk 0:00:14]}  Ra3 {[%clk 0:00:17]} 35. a6 {[%clk 0:00:11]}  Qb8 {[%clk 0:00:16]} 36. Nec1 {[%clk 0:00:10]}  Nf8 {[%clk 0:00:16]} 37. Bg2 {[%clk 0:00:09]}  Nf6 {[%clk 0:00:10]} 38. g5 {[%clk 0:00:07]}  Nh5 {[%clk 0:00:09]} 39. Bf3 {[%clk 0:00:05]}  Nf4 {[%clk 0:00:09]} 40. Qf5 {[%clk 0:00:06]}  N8e6 {[%clk 0:00:08]} 41. g6 {[%clk 0:00:06]}  fxg6 {[%clk 0:00:08]} 42. Qg4 {[%clk 0:00:07]}  Rxa6 {[%clk 0:00:08]} 43. Qxh4 {[%clk 0:00:06]}  Ra3 {[%clk 0:00:07]} 44. Bg4 {[%clk 0:00:05]}  Rxb3 {[%clk 0:00:06]} 45. Nxb3 {[%clk 0:00:06]}  Qxb3 {[%clk 0:00:06]} 46. Qe7 {[%clk 0:00:06]}  Qb1+ {[%clk 0:00:04]} 47. Kh2 {[%clk 0:00:06]}  Qe4 {[%clk 0:00:05]} 48. Qd8+ {[%clk 0:00:06]}  Kh7 {[%clk 0:00:04]} 49. Qh4+ {[%clk 0:00:06]}  Kg8 {[%clk 0:00:05]} 50. Qg3 {[%clk 0:00:05]}  Nxd4 {[%clk 0:00:05]} 51. Qa3 {[%clk 0:00:03]}  Kh7 {[%clk 0:00:04]} 52. Qg3 {[%clk 0:00:03]}  Nf5 {[%clk 0:00:04]} 53. Qg1 {[%clk 0:00:03]}  Qe5 {[%clk 0:00:04]} 54. Kh1 {[%clk 0:00:03]}  Nh4 {[%clk 0:00:04]} 55. Qg3 {[%clk 0:00:03]}  g5 {[%clk 0:00:04]} 56. Kh2 {[%clk 0:00:02]}  Qe4 {[%clk 0:00:05]} 57. Qg1 {[%clk 0:00:02]}  Nf3+ {[%clk 0:00:04]} 0-1


[Site "https://www.chess.com"]

[Event "Titled Tuesday Blitz December 13 Early 2022"]
[White "Deac, Bogdan-Daniel"]
[Black "Volkov, Maksim"]
[WhiteFideId "1226380"]
[BlackFideId "54123070"]
[WhiteElo "2649"]
[BlackElo "2257"]
[Result "1-0"]
[Round "04"]
[TimeControl "180+1"]
[Date "2022.12.13"]
[WhiteClock "0:00:09"]
[BlackClock "0:00:02"]

1. b3 {[%clk 0:03:00]}  Nf6 {[%clk 0:02:53]} 2. Bb2 {[%clk 0:03:01]}  d5 {[%clk 0:02:50]} 3. e3 {[%clk 0:03:01]}  g6 {[%clk 0:02:49]} 4. c4 {[%clk 0:03:00]}  c6 {[%clk 0:02:44]} 5. cxd5 {[%clk 0:02:58]}  cxd5 {[%clk 0:02:43]} 6. Bxf6 {[%clk 0:02:58]}  exf6 {[%clk 0:02:43]} 7. Nf3 {[%clk 0:02:58]}  Nc6 {[%clk 0:02:41]} 8. d4 {[%clk 0:02:56]}  Bb4+ {[%clk 0:02:37]} 9. Nbd2 {[%clk 0:02:56]}  O-O {[%clk 0:02:36]} 10. a3 {[%clk 0:02:55]}  Be7 {[%clk 0:02:35]} 11. Be2 {[%clk 0:02:53]}  Be6 {[%clk 0:02:24]} 12. O-O {[%clk 0:02:51]}  Rc8 {[%clk 0:02:21]} 13. Ne1 {[%clk 0:02:50]}  Bd6 {[%clk 0:02:09]} 14. Nd3 {[%clk 0:02:49]}  Qe7 {[%clk 0:02:09]} 15. b4 {[%clk 0:02:49]}  f5 {[%clk 0:02:06]} 16. Nb3 {[%clk 0:02:44]}  b6 {[%clk 0:02:00]} 17. b5 {[%clk 0:02:36]}  Nb8 {[%clk 0:01:57]} 18. a4 {[%clk 0:02:34]}  Nd7 {[%clk 0:01:55]} 19. a5 {[%clk 0:02:34]}  Nf6 {[%clk 0:01:46]} 20. axb6 {[%clk 0:02:34]}  axb6 {[%clk 0:01:46]} 21. Ra6 {[%clk 0:02:34]}  Bc7 {[%clk 0:01:44]} 22. Qa1 {[%clk 0:02:23]}  Ne4 {[%clk 0:01:42]} 23. g3 {[%clk 0:02:19]}  Bd7 {[%clk 0:01:35]} 24. Ne5 {[%clk 0:01:24]}  h5 {[%clk 0:01:12]} 25. Nxd7 {[%clk 0:01:15]}  Qxd7 {[%clk 0:01:13]} 26. Ra7 {[%clk 0:01:15]}  Qe6 {[%clk 0:01:04]} 27. Rc1 {[%clk 0:01:04]}  Bd6 {[%clk 0:01:03]} 28. Rxc8 {[%clk 0:01:03]}  Rxc8 {[%clk 0:01:04]} 29. Ra8 {[%clk 0:01:04]}  h4 {[%clk 0:01:01]} 30. Bf3 {[%clk 0:00:59]}  hxg3 {[%clk 0:00:56]} 31. hxg3 {[%clk 0:00:59]}  Nc3 {[%clk 0:00:52]} 32. Qa6 {[%clk 0:00:39]}  Rxa8 {[%clk 0:00:48]} 33. Qxa8+ {[%clk 0:00:40]}  Kg7 {[%clk 0:00:48]} 34. Qc6 {[%clk 0:00:39]}  Bb4 {[%clk 0:00:36]} 35. Nc1 {[%clk 0:00:29]}  Ba5 {[%clk 0:00:30]} 36. Nd3 {[%clk 0:00:26]}  Kf6 {[%clk 0:00:26]} 37. Nf4 {[%clk 0:00:22]}  Qxc6 {[%clk 0:00:25]} 38. bxc6 {[%clk 0:00:23]}  Ke7 {[%clk 0:00:21]} 39. Nxd5+ {[%clk 0:00:18]}  Nxd5 {[%clk 0:00:21]} 40. Bxd5 {[%clk 0:00:18]}  b5 {[%clk 0:00:22]} 41. Kf1 {[%clk 0:00:15]}  g5 {[%clk 0:00:20]} 42. f4 {[%clk 0:00:14]}  gxf4 {[%clk 0:00:19]} 43. gxf4 {[%clk 0:00:14]}  Kd6 {[%clk 0:00:13]} 44. Bxf7 {[%clk 0:00:14]}  Bd2 {[%clk 0:00:06]} 45. Ke2 {[%clk 0:00:13]}  Bc1 {[%clk 0:00:07]} 46. Bg6 {[%clk 0:00:11]}  Kxc6 {[%clk 0:00:07]} 47. Bxf5 {[%clk 0:00:11]}  b4 {[%clk 0:00:08]} 48. Bc2 {[%clk 0:00:11]}  Kd5 {[%clk 0:00:08]} 49. Kd3 {[%clk 0:00:11]}  Kd6 {[%clk 0:00:06]} 50. Bb3 {[%clk 0:00:11]}  Ke7 {[%clk 0:00:05]} 51. Ke4 {[%clk 0:00:08]}  Kd6 {[%clk 0:00:04]} 52. f5 {[%clk 0:00:08]}  Ke7 {[%clk 0:00:04]} 53. Kd3 {[%clk 0:00:07]}  Kf6 {[%clk 0:00:02]} 54. e4 {[%clk 0:00:08]}  Bb2 {[%clk 0:00:02]} 55. Be6 {[%clk 0:00:08]}  Bc3 {[%clk 0:00:02]} 56. e5+ {[%clk 0:00:08]}  Ke7 {[%clk 0:00:02]} 57. Ke4 {[%clk 0:00:08]}  Bb2 {[%clk 0:00:01]} 58. Bb3 {[%clk 0:00:09]}  Kd7 {[%clk 0:00:02]} 59. d5 {[%clk 0:00:09]}  Kc7 {[%clk 0:00:02]} 60. d6+ {[%clk 0:00:09]}  Kc6 {[%clk 0:00:02]} 61. Ba4+ {[%clk 0:00:09]} 1-0


[Site "https://www.chess.com"]

[Event "Titled Tuesday Blitz December 13 Early 2022"]
[White "Demin, Vladimir"]
[Black "Perez Ponsa, Federico"]
[WhiteFideId "4167457"]
[BlackFideId "117927"]
[WhiteElo "2592"]
[BlackElo "2831"]
[Result "0-1"]
[Round "04"]
[TimeControl "180+1"]
[Date "2022.12.14"]
[WhiteClock "0:01:11"]
[BlackClock "0:02:09"]

1. e4 {[%clk 0:03:00]}  e5 {[%clk 0:02:57]} 2. Nf3 {[%clk 0:02:58]}  Nc6 {[%clk 0:02:58]} 3. Bc4 {[%clk 0:02:57]}  Nf6 {[%clk 0:02:58]} 4. Ng5 {[%clk 0:02:57]}  d5 {[%clk 0:02:58]} 5. exd5 {[%clk 0:02:57]}  b5 {[%clk 0:02:58]} 6. Bf1 {[%clk 0:02:40]}  Nxd5 {[%clk 0:02:58]} 7. Bxb5 {[%clk 0:02:36]}  Bb7 {[%clk 0:02:58]} 8. d3 {[%clk 0:02:27]}  Be7 {[%clk 0:02:57]} 9. Nf3 {[%clk 0:02:26]}  O-O {[%clk 0:02:55]} 10. Bxc6 {[%clk 0:02:25]}  Bxc6 {[%clk 0:02:55]} 11. Nxe5 {[%clk 0:02:23]}  Bb4+ {[%clk 0:02:51]} 12. c3 {[%clk 0:02:21]}  Re8 {[%clk 0:02:51]} 13. d4 {[%clk 0:02:18]}  Bd6 {[%clk 0:02:47]} 14. O-O {[%clk 0:02:14]}  Bxe5 {[%clk 0:02:33]} 15. dxe5 {[%clk 0:02:15]}  Rxe5 {[%clk 0:02:34]} 16. Nd2 {[%clk 0:02:12]}  Nf4 {[%clk 0:02:32]} 17. f3 {[%clk 0:01:45]}  Ne2+ {[%clk 0:02:21]} 18. Kh1 {[%clk 0:01:34]}  Qh4 {[%clk 0:02:20]} 19. Ne4 {[%clk 0:01:13]}  Qxh2+ {[%clk 0:02:08]} 20. Kxh2 {[%clk 0:01:11]}  Rh5# {[%clk 0:02:09]} 0-1


[Site "https://www.chess.com"]

[Event "Titled Tuesday Blitz December 13 Early 2022"]
[White "Derraugh, Geordie"]
[Black "Hrabinska, Myroslava"]
[WhiteFideId "2603950"]
[BlackFideId "14109190"]
[WhiteElo "2082"]
[BlackElo "2171"]
[Result "1-0"]
[Round "04"]
[TimeControl "180+1"]
[Date "2022.12.14"]
[WhiteClock "0:00:48"]
[BlackClock "0:00:10"]

1. e4 {[%clk 0:02:57]}  c5 {[%clk 0:02:58]} 2. Nf3 {[%clk 0:02:57]}  Nc6 {[%clk 0:02:54]} 3. Bb5 {[%clk 0:02:57]}  e6 {[%clk 0:02:44]} 4. O-O {[%clk 0:02:55]}  Nge7 {[%clk 0:02:43]} 5. d4 {[%clk 0:02:54]}  cxd4 {[%clk 0:02:40]} 6. Nxd4 {[%clk 0:02:55]}  a6 {[%clk 0:02:35]} 7. Be2 {[%clk 0:02:54]}  Nxd4 {[%clk 0:02:33]} 8. Qxd4 {[%clk 0:02:54]}  Nc6 {[%clk 0:02:34]} 9. Qc3 {[%clk 0:02:54]}  b5 {[%clk 0:02:26]} 10. Bf4 {[%clk 0:02:49]}  Bb7 {[%clk 0:02:21]} 11. Nd2 {[%clk 0:02:44]}  Be7 {[%clk 0:02:20]} 12. a4 {[%clk 0:02:32]}  b4 {[%clk 0:02:15]} 13. Qg3 {[%clk 0:02:32]}  Bh4 {[%clk 0:01:59]} 14. Qxg7 {[%clk 0:02:15]}  Bf6 {[%clk 0:01:58]} 15. Qg3 {[%clk 0:02:06]}  Bxb2 {[%clk 0:01:57]} 16. Rab1 {[%clk 0:01:34]}  Nd4 {[%clk 0:01:30]} 17. Bd3 {[%clk 0:01:30]}  Bc3 {[%clk 0:01:25]} 18. Nc4 {[%clk 0:01:30]}  Bc6 {[%clk 0:00:56]} 19. Be5 {[%clk 0:01:09]}  f6 {[%clk 0:00:50]} 20. Qg7 {[%clk 0:00:56]}  Nf5 {[%clk 0:00:10]} 21. Qxh8+ {[%clk 0:00:48]} 1-0


[Site "https://www.chess.com"]

[Event "Titled Tuesday Blitz December 13 Early 2022"]
[White "Dias, Joao Batista"]
[Black "Samarth, J Rao"]
[WhiteFideId "2108240"]
[BlackFideId "46652370"]
[WhiteElo "1898"]
[BlackElo "1564"]
[Result "0-1"]
[Round "04"]
[TimeControl "180+1"]
[Date "2022.12.14"]
[WhiteClock "0:00:52"]
[BlackClock "0:00:50"]

1. e4 {[%clk 0:02:55]}  c5 {[%clk 0:02:58]} 2. Nf3 {[%clk 0:02:54]}  d6 {[%clk 0:02:57]} 3. d4 {[%clk 0:02:54]}  cxd4 {[%clk 0:02:53]} 4. Nxd4 {[%clk 0:02:55]}  Nf6 {[%clk 0:02:54]} 5. Nc3 {[%clk 0:02:54]}  a6 {[%clk 0:02:54]} 6. Be2 {[%clk 0:02:52]}  e5 {[%clk 0:02:54]} 7. Nb3 {[%clk 0:02:51]}  Be7 {[%clk 0:02:53]} 8. O-O {[%clk 0:02:51]}  O-O {[%clk 0:02:52]} 9. Bg5 {[%clk 0:02:50]}  Be6 {[%clk 0:02:52]} 10. Bxf6 {[%clk 0:02:50]}  Bxf6 {[%clk 0:02:53]} 11. Nd5 {[%clk 0:02:50]}  Bg5 {[%clk 0:02:53]} 12. g3 {[%clk 0:02:48]}  Nd7 {[%clk 0:02:53]} 13. h4 {[%clk 0:02:40]}  Bh6 {[%clk 0:02:47]} 14. Kg2 {[%clk 0:02:39]}  f5 {[%clk 0:02:42]} 15. f3 {[%clk 0:02:38]}  f4 {[%clk 0:02:37]} 16. g4 {[%clk 0:02:34]}  Qxh4 {[%clk 0:02:36]} 17. Rg1 {[%clk 0:02:33]}  Nf6 {[%clk 0:01:38]} 18. Ne7+ {[%clk 0:02:16]}  Kh8 {[%clk 0:01:37]} 19. Nf5 {[%clk 0:02:16]}  Bxf5 {[%clk 0:01:36]} 20. exf5 {[%clk 0:02:17]}  e4 {[%clk 0:01:32]} 21. Qe1 {[%clk 0:02:07]}  exf3+ {[%clk 0:01:22]} 22. Bxf3 {[%clk 0:02:07]}  Qg5 {[%clk 0:01:22]} 23. Nd4 {[%clk 0:02:06]}  Nxg4 {[%clk 0:01:21]} 24. Ne6 {[%clk 0:01:53]}  Ne3+ {[%clk 0:01:12]} 25. Kf2 {[%clk 0:01:51]}  Qh4+ {[%clk 0:01:11]} 26. Ke2 {[%clk 0:01:48]}  Qh2+ {[%clk 0:01:10]} 27. Qf2 {[%clk 0:01:43]}  Qxf2+ {[%clk 0:01:08]} 28. Kxf2 {[%clk 0:01:42]}  Rxf5 {[%clk 0:01:04]} 29. c3 {[%clk 0:01:29]}  Re8 {[%clk 0:00:57]} 30. Nd4 {[%clk 0:01:28]}  Rf7 {[%clk 0:00:54]} 31. b4 {[%clk 0:01:20]}  Rc7 {[%clk 0:00:53]} 32. Rac1 {[%clk 0:01:18]}  Rec8 {[%clk 0:00:52]} 33. Ne2 {[%clk 0:01:11]}  d5 {[%clk 0:00:51]} 34. Bg4 {[%clk 0:00:57]}  Nxg4+ {[%clk 0:00:49]} 35. Rxg4 {[%clk 0:00:57]}  f3 {[%clk 0:00:50]} 36. Kxf3 {[%clk 0:00:53]}  Bxc1 {[%clk 0:00:51]} 37. Nxc1 {[%clk 0:00:53]}  Rxc3+ {[%clk 0:00:51]} 38. Ke2 {[%clk 0:00:52]}  Rxc1 {[%clk 0:00:50]} 0-1


[Site "https://www.chess.com"]

[Event "Titled Tuesday Blitz December 13 Early 2022"]
[White "Dilanyan, Grigor"]
[Black "Donchenko, Alexander"]
[WhiteFideId "13303570"]
[BlackFideId "24603295"]
[WhiteElo "2229"]
[BlackElo "2581"]
[Result "0-1"]
[Round "04"]
[TimeControl "180+1"]
[Date "2022.12.14"]
[WhiteClock "0:01:46"]
[BlackClock "0:02:39"]

1. e4 {[%clk 0:03:00]}  c6 {[%clk 0:02:59]} 2. d4 {[%clk 0:02:59]}  d5 {[%clk 0:03:00]} 3. exd5 {[%clk 0:02:59]}  cxd5 {[%clk 0:03:01]} 4. Bd3 {[%clk 0:03:00]}  Nf6 {[%clk 0:03:00]} 5. h3 {[%clk 0:02:59]}  Nc6 {[%clk 0:03:00]} 6. c3 {[%clk 0:02:59]}  g6 {[%clk 0:03:00]} 7. Nf3 {[%clk 0:03:00]}  Bf5 {[%clk 0:03:01]} 8. O-O {[%clk 0:03:00]}  Bxd3 {[%clk 0:03:00]} 9. Qxd3 {[%clk 0:03:01]}  Bg7 {[%clk 0:03:01]} 10. Bf4 {[%clk 0:03:01]}  O-O {[%clk 0:03:02]} 11. Nbd2 {[%clk 0:03:01]}  a6 {[%clk 0:03:02]} 12. Rfe1 {[%clk 0:03:00]}  b5 {[%clk 0:03:02]} 13. a3 {[%clk 0:02:59]}  Na5 {[%clk 0:03:00]} 14. Ne5 {[%clk 0:02:53]}  e6 {[%clk 0:02:56]} 15. b4 {[%clk 0:02:49]}  Nc4 {[%clk 0:02:56]} 16. Ndxc4 {[%clk 0:02:46]}  dxc4 {[%clk 0:02:56]} 17. Qf3 {[%clk 0:02:44]}  Nd5 {[%clk 0:02:56]} 18. a4 {[%clk 0:02:38]}  Qf6 {[%clk 0:02:55]} 19. Bd2 {[%clk 0:02:30]}  Qxf3 {[%clk 0:02:55]} 20. Nxf3 {[%clk 0:02:31]}  Rfb8 {[%clk 0:02:55]} 21. a5 {[%clk 0:02:30]}  Re8 {[%clk 0:02:52]} 22. Re2 {[%clk 0:02:28]}  f6 {[%clk 0:02:52]} 23. Rae1 {[%clk 0:02:28]}  Kf7 {[%clk 0:02:52]} 24. Nh2 {[%clk 0:02:23]}  Bf8 {[%clk 0:02:51]} 25. Nf1 {[%clk 0:02:23]}  Bd6 {[%clk 0:02:50]} 26. Ne3 {[%clk 0:02:23]}  Nf4 {[%clk 0:02:50]} 27. Ng4 {[%clk 0:02:17]}  Nxe2+ {[%clk 0:02:50]} 28. Rxe2 {[%clk 0:02:18]}  e5 {[%clk 0:02:48]} 29. dxe5 {[%clk 0:02:15]}  Bxe5 {[%clk 0:02:49]} 30. Kf1 {[%clk 0:02:00]}  Rad8 {[%clk 0:02:49]} 31. f4 {[%clk 0:01:58]}  Bb8 {[%clk 0:02:46]} 32. Be3 {[%clk 0:01:56]}  Rd3 {[%clk 0:02:44]} 33. Bd4 {[%clk 0:01:48]}  Rxe2 {[%clk 0:02:42]} 34. Kxe2 {[%clk 0:01:49]}  Bxf4 {[%clk 0:02:39]} 35. Nxf6 {[%clk 0:01:46]}  Rxd4 {[%clk 0:02:39]} 0-1


[Site "https://www.chess.com"]

[Event "Titled Tuesday Blitz December 13 Early 2022"]
[White "Ezat, Mohamed"]
[Black "Goltsev, Dmitry"]
[WhiteFideId "10600906"]
[BlackFideId "24176710"]
[WhiteElo "2388"]
[BlackElo "2327"]
[Result "0-1"]
[Round "04"]
[TimeControl "180+1"]
[Date "2022.12.14"]
[WhiteClock "0:00:02"]
[BlackClock "0:01:21"]

1. d4 {[%clk 0:03:00]}  Nf6 {[%clk 0:02:59]} 2. Nf3 {[%clk 0:02:55]}  e6 {[%clk 0:03:00]} 3. e3 {[%clk 0:02:55]}  d5 {[%clk 0:02:59]} 4. Bd3 {[%clk 0:02:55]}  c5 {[%clk 0:02:58]} 5. O-O {[%clk 0:02:55]}  Nc6 {[%clk 0:02:58]} 6. b3 {[%clk 0:02:55]}  cxd4 {[%clk 0:02:57]} 7. exd4 {[%clk 0:02:55]}  Bd6 {[%clk 0:02:57]} 8. Bb2 {[%clk 0:02:54]}  Ne4 {[%clk 0:02:57]} 9. Ne5 {[%clk 0:02:53]}  Nxe5 {[%clk 0:02:53]} 10. dxe5 {[%clk 0:02:51]}  Bc5 {[%clk 0:02:54]} 11. Bxe4 {[%clk 0:02:50]}  dxe4 {[%clk 0:02:55]} 12. Qg4 {[%clk 0:02:49]}  O-O {[%clk 0:02:52]} 13. Qxe4 {[%clk 0:02:46]}  Qg5 {[%clk 0:02:45]} 14. Nc3 {[%clk 0:02:43]}  Rb8 {[%clk 0:02:37]} 15. Qe2 {[%clk 0:02:39]}  b6 {[%clk 0:02:36]} 16. Ne4 {[%clk 0:02:37]}  Qg6 {[%clk 0:02:36]} 17. Nxc5 {[%clk 0:02:09]}  bxc5 {[%clk 0:02:37]} 18. Ba3 {[%clk 0:02:06]}  Bb7 {[%clk 0:02:37]} 19. f3 {[%clk 0:02:06]}  Rbc8 {[%clk 0:02:36]} 20. c4 {[%clk 0:02:05]}  h5 {[%clk 0:02:31]} 21. Rad1 {[%clk 0:02:03]}  h4 {[%clk 0:02:25]} 22. Rd7 {[%clk 0:01:57]}  Bc6 {[%clk 0:02:18]} 23. Rxa7 {[%clk 0:01:44]}  h3 {[%clk 0:02:17]} 24. g3 {[%clk 0:01:41]}  Rfd8 {[%clk 0:02:12]} 25. Bxc5 {[%clk 0:01:26]}  Rd3 {[%clk 0:02:11]} 26. Be3 {[%clk 0:01:20]}  Rcd8 {[%clk 0:02:08]} 27. Ra6 {[%clk 0:01:17]}  Bb7 {[%clk 0:01:58]} 28. Rd6 {[%clk 0:01:12]}  R8xd6 {[%clk 0:01:56]} 29. exd6 {[%clk 0:01:12]}  Rxd6 {[%clk 0:01:57]} 30. Rd1 {[%clk 0:01:06]}  Rxd1+ {[%clk 0:01:47]} 31. Qxd1 {[%clk 0:01:04]}  Qf5 {[%clk 0:01:46]} 32. Kf2 {[%clk 0:01:01]}  Kh7 {[%clk 0:01:43]} 33. g4 {[%clk 0:00:46]}  Qe5 {[%clk 0:01:35]} 34. Qg1 {[%clk 0:00:35]}  g5 {[%clk 0:01:27]} 35. Qb1+ {[%clk 0:00:10]}  f5 {[%clk 0:01:23]} 36. Qg1 {[%clk 0:00:02]}  Qb2+ {[%clk 0:01:21]} 0-1


[Site "https://www.chess.com"]